bitfinex/quotes_SOLUSD_20250313
["timestamp","ask_amount","ask_price","bid_price","bid_amount"]
[1741844543870,39.00158953,123.68,123.66,0.0001]
[1741844545061,0.14216157,123.68,123.66,0.0001]
[1741844545765,47.08708953,123.68,123.66,0.0001]
[1741844545976,8.0855,123.68,123.66,0.0001]
[1741844546874,47.08708953,123.68,123.66,0.0001]
[1741844547766,57.93556153,123.67,123.66,0.0001]
[1741844549159,66.02156153,123.67,123.66,0.0001]
[1741844551266,39.28591267,123.67,123.66,0.0001]
[1741844551488,47.08638953,123.69,123.66,0.0001]
[1741844551666,0.14216157,123.68,123.66,0.0001]
[1741844551986,39.1437511,123.68,123.66,0.0001]
[1741844552167,0.14216157,123.68,123.66,0.0001]
[1741844552375,39.1437511,123.68,123.66,0.0001]
[1741844552885,47.2293511,123.68,123.66,0.0001]
[1741844553373,0.14216157,123.68,123.66,0.0001]
[1741844553554,0.14216157,123.7,123.66,0.0001]
[1741844553758,0.14216157,123.71,123.66,79.65368953]
[1741844553958,0.14216157,123.71,123.67,39.00158953]
[1741844554265,39.00158953,123.71,123.66,0.0001]
[1741844554661,47.08558953,123.7,123.66,0.0001]
[1741844554979,0.14216157,123.69,123.66,0.0001]
[1741844555766,39.1437511,123.69,123.66,0.0001]
[1741844556065,39.00158953,123.7,123.66,0.0001]
[1741844557087,47.08608953,123.7,123.66,0.0001]
[1741844557881,0.28432314,123.72,123.66,0.0001]
[1741844558065,39.00158953,123.71,123.66,0.0001]
[1741844558466,39.00158953,123.71,123.66,40.6521]
[1741844559385,39.00158953,123.7,123.66,40.6521]
[1741844560768,0.14216157,123.7,123.66,40.6521]
[1741844560967,0.20516157,123.7,123.66,40.6521]
[1741844561668,8.0847,123.69,123.66,40.6521]
[1741844562593,47.08628953,123.69,123.66,40.6521]
[1741844563091,8.0847,123.69,123.66,40.6521]
[1741844564670,39.1437511,123.68,123.66,0.0001]
[1741844564973,0.14216157,123.68,123.66,0.0001]
[1741844565199,39.28591267,123.68,123.66,0.0001]
[1741844565497,0.14216157,123.68,123.66,0.0001]
[1741844565989,67.29808953,123.69,123.66,0.0001]
[1741844566172,39.1437511,123.68,123.66,0.0001]
[1741844566373,8.086,123.67,123.66,0.0001]
[1741844568096,0.14216157,123.68,123.66,0.0001]
[1741844568299,8.0849,123.69,123.66,0.0001]
[1741844568674,47.08648953,123.69,123.66,0.0001]
[1741844569075,39.1437511,123.68,123.66,0.0001]
[1741844569275,8.1473,123.7,123.66,0.0001]
[1741844569476,0.063,123.7,123.66,39.00168953]
[1741844569689,39.00158953,123.68,123.66,0.0001]
[1741844569889,39.00158953,123.69,123.66,0.0001]
[1741844570292,47.2907511,123.7,123.66,0.0001]
[1741844570800,8.147,123.7,123.66,0.0001]
[1741844571002,0.063,123.7,123.67,39.00158953]
[1741844571181,0.063,123.7,123.66,45.06568953]
[1741844571389,8.1472,123.7,123.66,6.0641]
[1741844571894,0.063,123.7,123.66,6.0641]
[1741844572196,0.063,123.7,123.66,45.06568953]
[1741844572499,0.063,123.7,123.66,30.45638302]
[1741844572887,0.063,123.7,123.66,38.54298302]
[1741844573082,0.063,123.7,123.66,71.10838302]
[1741844573682,0.063,123.7,123.66,79.19488302]
[1741844573882,0.063,123.7,123.67,24.39228302]
[1741844574092,0.063,123.7,123.66,71.10838302]
[1741844576876,8.147,123.7,123.66,46.7161]
[1741844577079,8.147,123.7,123.66,65.04438302]
[1741844578001,8.147,123.7,123.66,40.6521]
[1741844578394,0.063,123.7,123.66,65.04438302]
[1741844579181,0.063,123.7,123.66,40.6521]
[1741844579182,24.59744459,123.7,123.66,40.6521]
[1741844579502,24.39228302,123.69,123.66,40.6521]
[1741844580483,0.20516157,123.7,123.66,65.04438302]
[1741844580888,0.063,123.7,123.67,24.39228302]
[1741844582110,0.063,123.7,123.67,32.47818302]
[1741844582311,0.063,123.7,123.67,24.39228302]
[1741844582688,0.063,123.7,123.66,40.6521]
[1741844583101,8.147,123.7,123.66,40.6521]
[1741844583908,8.147,123.7,123.66,65.04438302]
[1741844585111,0.063,123.7,123.66,65.04438302]
[1741844586692,0.063,123.7,123.66,73.13098302]
[1741844586898,0.063,123.7,123.66,65.04438302]
[1741844588613,0.063,123.7,123.66,40.6521]
[1741844588915,24.45528302,123.7,123.66,40.6521]
[1741844589715,8.0847,123.69,123.66,40.6521]
[1741844590494,0.063,123.7,123.66,40.6521]
[1741844590701,8.1472,123.7,123.66,40.6521]
[1741844591512,24.39228302,123.69,123.66,40.6521]
[1741844591700,8.0853,123.68,123.66,40.6521]
[1741844592509,8.0853,123.68,123.66,0.0001]
[1741844592510,32.47758302,123.68,123.66,0.0001]
[1741844592713,24.39228302,123.67,123.66,0.0001]
[1741844592901,32.47758302,123.68,123.66,0.0001]
[1741844594099,24.39228302,123.67,123.66,0.0001]
[1741844595311,32.47758302,123.68,123.66,0.0001]
[1741844595515,24.53444459,123.67,123.66,0.0001]
[1741844595715,32.62044459,123.67,123.66,0.0001]
[1741844597289,8.22816157,123.67,123.66,0.0001]
[1741844597815,32.62044459,123.67,123.66,0.0001]
[1741844597993,32.76260616,123.67,123.66,0.0001]
[1741844598196,51.41225502,123.67,123.66,0.0001]
[1741844599002,51.41225502,123.67,123.64,0.03]
[1741844599003,0.14216157,123.65,123.64,0.0001]
[1741844599324,24.53444459,123.65,123.64,0.0001]
[1741844599894,8.0873,123.65,123.64,0.0001]
[1741844600328,8.22896157,123.66,123.64,0.0001]
[1741844600703,0.14216157,123.68,123.64,0.0001]
[1741844601619,24.53444459,123.68,123.64,0.0001]
[1741844601796,32.47818302,123.68,123.64,0.0001]
[1741844602328,32.47768302,123.68,123.64,0.0001]
[1741844602614,24.53444459,123.69,123.64,24.39238302]
[1741844602819,0.14216157,123.69,123.64,24.39238302]
[1741844603018,24.39228302,123.68,123.64,0.0001]
[1741844603217,24.53444459,123.68,123.64,0.0001]
[1741844603518,0.14216157,123.67,123.64,0.0001]
[1741844603706,32.47798302,123.68,123.64,0.0001]
[1741844605325,24.39228302,123.67,123.64,0.0001]
[1741844605816,8.0866,123.66,123.64,0.0001]
[1741844607521,32.47758302,123.68,123.64,0.0001]
[1741844607912,8.0853,123.68,123.64,0.0001]
[1741844608229,32.47758302,123.68,123.64,0.0001]
[1741844608622,8.22696157,123.69,123.65,24.39228302]
[1741844608839,0.063,123.67,123.65,24.39228302]
[1741844609122,0.063,123.67,123.66,24.39228302]
[1741844610314,0.063,123.67,123.66,99.50053188]
[1741844613738,0.063,123.67,123.66,48.372]
[1741844614032,0.063,123.67,123.66,72.76428302]
[1741844614218,0.063,123.67,123.66,48.372]
[1741844614805,0.063,123.67,123.66,40.652]
[1741844615015,0.063,123.67,123.66,65.04428302]
[1741844615204,0.063,123.67,123.66,73.13088302]
[1741844616533,0.063,123.67,123.66,91.78053188]
[1741844616931,0.063,123.67,123.66,65.04428302]
[1741844617509,0.063,123.67,123.66,73.13088302]
[1741844618014,0.063,123.67,123.66,65.04428302]
[1741844620022,0.063,123.67,123.66,203.54428302]
[1741844620329,0.063,123.67,123.66,179.152]
[1741844620940,0.063,123.67,123.66,203.54428302]
[1741844621236,0.063,123.67,123.66,40.652]
[1741844622419,24.16044459,123.7,123.66,40.652]
[1741844622627,52.68448302,123.71,123.66,40.652]
[1741844622828,24.39228302,123.7,123.66,40.652]
[1741844623017,52.68448302,123.71,123.66,40.652]
[1741844623331,24.39228302,123.7,123.66,40.652]
[1741844625136,24.39228302,123.69,123.66,40.652]
[1741844625639,32.47628302,123.7,123.66,40.652]
[1741844625818,8.084,123.7,123.66,40.652]
[1741844626837,8.0835,123.71,123.68,24.39228302]
[1741844627042,20.2054,123.73,123.68,24.39228302]
[1741844627240,8.0821,123.73,123.69,24.39228302]
[1741844627546,32.47438302,123.73,123.67,179.152]
[1741844627726,32.47438302,123.73,123.68,24.39228302]
[1741844628043,8.0821,123.73,123.68,24.39228302]
[1741844629258,8.0821,123.73,123.67,179.152]
[1741844629438,8.0821,123.73,123.68,24.39228302]
[1741844630440,6.54392314,123.76,123.71,24.39228302]
[1741844630441,8.0801,123.76,123.71,24.39228302]
[1741844630739,8.0801,123.76,123.71,203.54428302]
[1741844631329,32.47238302,123.76,123.71,203.54428302]
[1741844632552,0.063,123.73,123.71,203.54428302]
[1741844632722,0.063,123.73,123.71,65.04428302]
[1741844634849,0.063,123.73,123.71,40.652]
[1741844635749,0.063,123.73,123.71,65.04428302]
[1741844637447,0.063,123.73,123.72,43.04193188]
[1741844638629,0.063,123.73,123.72,56.83913188]
[1741844638949,8.1409,123.8,123.74,18.64964886]
[1741844639146,8.1409,123.8,123.74,197.73864886]
[1741844639340,32.53318302,123.8,123.75,24.39228302]
[1741844641354,24.39228302,123.79,123.74,203.48128302]
[1741844641548,8.0788,123.78,123.74,203.48128302]
[1741844643240,24.39228302,123.77,123.74,179.089]
[1741844643542,24.39228302,123.76,123.72,179.089]
[1741844643749,8.0808,123.75,123.72,179.089]
[1741844643927,8.0808,123.75,123.69,218.74198302]
[1741844643928,24.39228302,123.74,123.69,218.74198302]
[1741844644333,24.39228302,123.72,123.69,40.589]
[1741844644749,24.39228302,123.72,123.68,0.03]
[1741844644953,24.39228302,123.73,123.68,24.42228302]
[1741844645156,24.39228302,123.72,123.68,40.619]
[1741844645350,24.39228302,123.71,123.68,40.619]
[1741844645553,24.39228302,123.7,123.68,0.03]
[1741844645746,8.0847,123.69,123.68,0.03]
[1741844646130,24.39228302,123.71,123.68,0.03]
[1741844646333,8.084,123.7,123.68,0.03]
[1741844647465,24.39228302,123.72,123.68,0.03]
[1741844647957,32.47438302,123.73,123.68,24.42228302]
[1741844648652,32.47438302,123.73,123.68,0.03]
[1741844648863,24.39228302,123.72,123.68,0.03]
[1741844649359,24.39228302,123.72,123.68,40.619]
[1741844650040,24.39228302,123.7,123.68,40.619]
[1741844650430,8.0834,123.71,123.68,40.619]
[1741844650431,32.47568302,123.71,123.68,40.619]
[1741844651567,24.67660616,123.7,123.68,0.03]
[1741844652061,24.39228302,123.7,123.68,0.03]
[1741844652254,32.47678302,123.7,123.68,0.03]
[1741844652460,24.39228302,123.69,123.68,0.03]
[1741844652644,32.47678302,123.7,123.68,0.03]
[1741844653057,32.47578302,123.71,123.68,0.03]
[1741844653251,25.98018302,123.72,123.68,0.03]
[1741844653457,8.0828,123.72,123.68,0.03]
[1741844655252,8.0828,123.72,123.68,24.42228302]
[1741844655452,8.0821,123.73,123.68,24.42228302]
[1741844655750,32.47438302,123.73,123.68,0.03]
[1741844655935,32.47438302,123.73,123.68,24.42228302]
[1741844656954,8.0821,123.73,123.69,24.39228302]
[1741844657141,8.0821,123.73,123.68,24.42228302]
[1741844657642,24.39228302,123.72,123.68,0.03]
[1741844659757,8.0834,123.71,123.68,0.03]
[1741844661271,24.39228302,123.7,123.68,0.03]
[1741844661565,24.39228302,123.69,123.68,0.03]
[1741844661872,24.39228302,123.7,123.68,0.03]
[1741844662165,32.76000616,123.71,123.68,0.03]
[1741844662573,24.39228302,123.7,123.68,0.03]
[1741844663167,8.36772314,123.71,123.68,0.03]
[1741844663168,24.67660616,123.69,123.68,0.03]
[1741844663370,0.28432314,123.69,123.68,0.03]
[1741844664265,8.36902314,123.69,123.68,0.03]
[1741844664774,8.0847,123.69,123.68,0.03]
[1741844665972,7.64216157,123.73,123.68,0.03]
[1741844666174,8.0827,123.72,123.68,0.03]
[1741844666359,32.47498302,123.72,123.68,0.03]
[1741844667065,32.47458302,123.73,123.68,24.42228302]
[1741844667376,32.47458302,123.73,123.68,0.03]
[1741844667560,24.39228302,123.72,123.68,0.03]
[1741844668277,32.47568302,123.71,123.68,0.03]
[1741844669477,24.39228302,123.69,123.68,0.03]
[1741844670253,32.47698302,123.69,123.68,0.03]
[1741844671173,0.14216157,123.72,123.68,0.03]
[1741844671174,8.0827,123.72,123.68,0.03]
[1741844671369,24.67660616,123.69,123.68,0.03]
[1741844672172,24.53444459,123.69,123.68,0.03]
[1741844672372,32.76130616,123.69,123.68,0.03]
[1741844673180,0.28432314,123.68,123.64,40.5891]
[1741844673474,24.39228302,123.66,123.64,0.0001]
[1741844675063,8.0873,123.65,123.64,0.0001]
[1741844676372,32.62044459,123.67,123.64,0.0001]
[1741844676773,8.22816157,123.67,123.64,0.0001]
[1741844677074,32.62044459,123.67,123.64,0.0001]
[1741844677879,8.086,123.67,123.64,0.0001]
[1741844678183,26.01468302,123.7,123.64,64.98138302]
[1741844678365,8.0848,123.69,123.64,64.98138302]
[1741844678686,32.47648302,123.7,123.65,24.39228302]
[1741844679058,24.39228302,123.69,123.64,40.5891]
[1741844679291,24.39228302,123.68,123.64,40.5891]
[1741844679981,24.39228302,123.66,123.64,0.0001]
[1741844680581,8.0873,123.65,123.64,0.0001]
[1741844680776,32.62094459,123.67,123.64,0.0001]
[1741844683561,24.39228302,123.66,123.64,0.0001]
[1741844684388,24.39228302,123.65,123.64,0.0001]
[1741844684767,24.53444459,123.66,123.64,0.0001]
[1741844685073,8.0873,123.65,123.64,0.0001]
[1741844685783,32.76390616,123.65,123.64,0.0001]
[1741844685989,8.37162314,123.65,123.64,0.0001]
[1741844686690,8.0873,123.65,123.64,0.0001]
[1741844693006,8.0867,123.66,123.64,0.0001]
[1741844693587,23.71341236,123.66,123.64,0.0001]
[1741844695509,23.9983355,123.65,123.64,0.0001]
[1741844696280,23.85617393,123.65,123.64,0.0001]
[1741844696476,23.9983355,123.65,123.64,0.0001]
[1741844699799,23.71401236,123.65,123.64,0.0001]
[1741844701202,23.9983355,123.65,123.64,0.0001]
[1741844701603,8.0873,123.65,123.64,0.0001]
[1741844701903,8.0869,123.66,123.64,0.0001]
[1741844702285,23.71361236,123.66,123.64,0.0001]
[1741844702887,15.62671236,123.65,123.64,0.0001]
[1741844703503,23.71361236,123.66,123.64,0.0001]
[1741844703693,8.0869,123.66,123.64,0.0001]
[1741844703890,0.28432314,123.65,123.64,0.0001]
[1741844704195,15.9110355,123.65,123.64,0.0001]
[1741844705195,42.64798436,123.65,123.64,0.0001]
[1741844707985,8.0889,123.63,123.61,0.03]
[1741844708496,8.0881,123.64,123.61,0.03]
[1741844709886,23.71481236,123.64,123.61,0.03]
[1741844710302,15.62671236,123.62,123.61,0.03]
[1741844710511,15.9110355,123.63,123.61,0.03]
[1741844710702,15.62671236,123.63,123.61,0.03]
[1741844711414,8.0893,123.62,123.61,0.03]
[1741844712509,15.62671236,123.64,123.61,0.03]
[1741844712715,15.62671236,123.67,123.61,64.43951236]
[1741844712889,15.62671236,123.67,123.62,15.62671236]
[1741844713092,15.62671236,123.66,123.61,202.93951236]
[1741844713297,23.71271236,123.67,123.61,202.93951236]
[1741844713695,23.71271236,123.67,123.61,179.119]
[1741844714012,23.71271236,123.67,123.61,194.74571236]
[1741844714515,23.71271236,123.67,123.62,15.62671236]
[1741844714807,0.063,123.68,123.63,15.62671236]
[1741844714991,0.063,123.68,123.64,15.62671236]
[1741844715189,8.1483,123.68,123.64,56.21571236]
[1741844715417,8.1483,123.68,123.64,40.589]
[1741844715910,0.063,123.68,123.64,56.21571236]
[1741844718322,0.063,123.68,123.66,24.39746352]
[1741844719896,0.063,123.68,123.65,32.48436352]
[1741844720816,0.063,123.68,123.65,24.39746352]
[1741844721000,0.063,123.68,123.66,24.39746352]
[1741844722014,0.063,123.68,123.66,64.98646352]
[1741844724206,0.063,123.68,123.67,51.25913552]
[1741844724518,0.063,123.73,123.68,83.57311238]
[1741844724714,0.063,123.73,123.71,24.39746352]
[1741844724910,0.063,123.73,123.72,24.39746352]
[1741844725419,0.063,123.73,123.71,64.92346352]
[1741844725826,0.063,123.73,123.72,24.39746352]
[1741844726611,0.063,123.73,123.72,32.48016352]
[1741844726817,0.063,123.73,123.72,24.39746352]
[1741844727026,0.063,123.73,123.71,64.92346352]
[1741844728527,0.063,123.73,123.71,203.42346352]
[1741844729605,0.063,123.73,123.71,211.50656352]
[1741844729927,0.063,123.73,123.72,24.39746352]
[1741844731633,0.063,123.73,123.72,32.48016352]
[1741844731923,0.063,123.73,123.72,80.65296352]
[1741844732526,0.063,123.73,123.72,99.30261238]
[1741844732713,0.063,123.73,123.72,237.80261238]
[1741844733712,0.063,123.73,123.72,549.80261238]
[1741844736530,0.063,123.73,123.72,237.80261238]
[1741844736725,0.063,123.78,123.75,20.0]
[1741844736934,0.063,123.78,123.76,31.89746352]
[1741844737226,0.063,123.78,123.76,7.5]
[1741844738330,24.39746352,123.77,123.75,40.526]
[1741844738725,24.46046352,123.78,123.75,40.526]
[1741844739131,0.063,123.78,123.75,40.526]
[1741844739736,24.46046352,123.78,123.75,40.526]
[1741844739918,24.39746352,123.77,123.75,40.526]
[1741844740313,23.67653688,123.77,123.75,40.526]
[1741844740631,23.67653688,123.77,123.72,179.026]
[1741844740835,23.67653688,123.77,123.72,40.526]
[1741844741139,15.59703688,123.76,123.72,40.526]
[1741844741320,15.59703688,123.74,123.7,40.526]
[1741844742040,0.28432314,123.76,123.7,40.526]
[1741844742333,8.0821,123.73,123.7,40.526]
[1741844742837,23.67913688,123.73,123.69,0.03]
[1741844743539,20.2023,123.75,123.7,15.59703688]
[1741844743540,8.0808,123.75,123.7,15.59703688]
[1741844743731,23.67783688,123.75,123.7,15.59703688]
[1741844744730,23.67783688,123.75,123.69,15.62703688]
[1741844744927,15.59703688,123.74,123.69,15.62703688]
[1741844745126,23.67783688,123.75,123.69,15.62703688]
[1741844746040,23.67783688,123.75,123.69,194.65303688]
[1741844746644,23.67783688,123.75,123.7,15.59703688]
[1741844748242,0.063,123.77,123.72,15.59703688]
[1741844748546,8.0801,123.76,123.72,15.59703688]
[1741844748736,8.0801,123.76,123.71,15.59703688]
[1741844748926,23.67713688,123.76,123.71,15.59703688]
[1741844750744,8.0801,123.76,123.71,15.59703688]
[1741844750949,8.0801,123.76,123.71,23.68033688]
[1741844751130,0.063,123.77,123.72,15.59703688]
[1741844751333,0.063,123.77,123.72,202.08303688]
[1741844751531,8.1428,123.77,123.72,202.08303688]
[1741844751931,8.1428,123.77,123.73,15.59703688]
[1741844752126,0.063,123.77,123.75,15.59703688]
[1741844752327,0.063,123.77,123.75,56.12303688]
[1741844752646,0.063,123.77,123.75,40.526]
[1741844755232,0.063,123.77,123.75,179.026]
[1741844757547,0.063,123.77,123.73,24.36362165]
[1741844757738,24.42662165,123.77,123.72,40.526]
[1741844759656,8.0801,123.76,123.72,40.526]
[1741844759857,8.0801,123.76,123.72,64.88962165]
[1741844760354,8.0801,123.76,123.72,40.526]
[1741844760953,32.44372165,123.76,123.72,40.526]
[1741844761158,24.36362165,123.73,123.7,40.556]
[1741844761454,24.36362165,123.72,123.7,40.556]
[1741844761834,8.0834,123.71,123.7,40.556]
[1741844762254,8.0834,123.71,123.7,0.03]
[1741844762560,32.44702165,123.71,123.7,0.03]
[1741844763758,32.44572165,123.73,123.7,0.03]
[1741844764055,34.01322165,123.74,123.7,0.03]
[1741844764242,24.36362165,123.73,123.7,0.03]
[1741844764438,24.36362165,123.72,123.7,0.03]
[1741844765332,24.36362165,123.73,123.7,0.03]
[1741844765757,9.6496,123.74,123.7,40.556]
[1741844765951,34.01322165,123.74,123.7,40.556]
[1741844766348,0.063,123.71,123.7,40.556]
[1741844768558,24.42662165,123.71,123.7,0.03]
[1741844769556,0.063,123.71,123.7,0.03]
[1741844770560,8.1464,123.71,123.7,0.03]
[1741844770764,0.063,123.71,123.7,0.03]
[1741844773439,24.42662165,123.71,123.7,0.03]
[1741844773639,0.063,123.71,123.7,0.03]
[1741844778338,0.063,123.71,123.7,40.556]
[1741844779164,0.063,123.71,123.7,56.1609591]
[1741844779570,0.063,123.71,123.7,64.2449591]
[1741844779944,0.063,123.71,123.7,221.6789311]
[1741844780154,0.0001,123.71,123.7,221.6789311]
[1741844780358,0.063,123.77,123.73,20.0]
[1741844780553,0.063,123.77,123.75,15.6049591]
[1741844781263,0.063,123.77,123.74,23.0649591]
[1741844782253,0.063,123.77,123.74,31.8187614]
[1741844782562,0.063,123.77,123.75,24.3587614]
[1741844782772,0.063,123.77,123.76,24.3587614]
[1741844783073,0.063,123.77,123.76,222.03441026]
[1741844783865,0.063,123.77,123.76,179.026]
[1741844784180,0.063,123.77,123.76,222.03441026]
[1741844785076,0.063,123.77,123.76,230.11451026]
[1741844786671,0.063,123.8,123.78,40.4]
[1741844786861,0.063,123.8,123.79,31.8387614]
[1741844787381,0.063,123.8,123.79,7.48]
[1741844789575,0.063,123.8,123.79,31.8387614]
[1741844790054,0.063,123.8,123.79,47.88]
[1741844790458,0.063,123.8,123.79,72.2387614]
[1741844791151,0.063,123.8,123.79,47.88]
[1741844793277,0.063,123.8,123.79,80.3168614]
[1741844793477,0.063,123.8,123.79,81.52798697]
[1741844793964,0.063,123.8,123.79,220.02798697]
[1741844794164,0.063,123.8,123.79,237.46651026]
[1741844795583,0.063,123.8,123.79,237.7508334]
[1741844795960,0.063,123.8,123.79,237.60867183]
[1741844796969,0.063,123.8,123.79,237.7508334]
[1741844797276,0.063,123.8,123.79,549.7508334]
[1741844798862,0.063,123.81,123.8,48.4145]
[1741844799057,0.063,123.81,123.8,40.337]
[1741844801083,0.063,123.81,123.79,39.8567614]
[1741844801266,0.063,123.81,123.8,24.3587614]
[1741844801979,0.063,123.81,123.79,31.7787614]
[1741844802391,0.063,123.81,123.78,40.367]
[1741844802558,24.4217614,123.81,123.78,40.367]
[1741844802761,0.063,123.81,123.78,40.367]
[1741844804427,24.4217614,123.81,123.78,40.367]
[1741844805968,24.4217614,123.81,123.78,0.03]
[1741844806366,23.72542192,123.81,123.78,0.03]
[1741844809092,8.14,123.81,123.78,0.03]
[1741844809695,0.063,123.81,123.78,15.61542192]
[1741844809865,0.063,123.81,123.8,15.58542192]
[1741844810772,0.063,123.81,123.79,7.4]
[1741844811588,0.063,123.81,123.78,194.45242192]
[1741844813295,0.063,123.81,123.8,15.58542192]
[1741844813493,0.063,123.81,123.8,40.337]
[1741844817596,0.063,123.81,123.8,55.92242192]
[1741844817995,0.063,123.81,123.8,40.337]
[1741844818994,0.063,123.81,123.8,55.92242192]
[1741844819178,0.063,123.81,123.8,40.337]
[1741844819781,0.063,123.81,123.8,71.37992192]
[1741844820400,0.063,123.81,123.8,90.02957078]
[1741844820604,0.063,123.81,123.8,229.74062958]
[1741844820794,0.063,123.81,123.8,209.87992192]
[1741844822807,0.063,123.81,123.8,201.80242192]
[1741844823010,0.063,123.81,123.8,40.337]
[1741844825705,0.063,123.81,123.8,63.99992192]
[1741844826987,0.063,123.81,123.8,82.64957078]
[1741844827514,0.063,123.81,123.8,221.14957078]
[1741844829516,0.063,123.84,123.82,18.64964886]
[1741844829708,0.063,123.84,123.83,41.59507078]
[1741844829894,0.063,123.84,123.83,42.80571243]
[1741844830212,0.063,123.84,123.83,221.64271243]
[1741844830413,0.063,123.84,123.83,220.43207078]
[1741844831116,0.063,123.84,123.83,228.50757078]
[1741844834710,0.063,123.84,123.83,201.78242192]
[1741844835917,0.063,123.84,123.83,186.197]
[1741844836223,0.063,123.84,123.83,201.78242192]
[1741844838424,0.063,123.84,123.83,178.837]
[1741844838595,0.063,123.84,123.83,40.337]
[1741844839094,15.64842192,123.84,123.83,40.337]
[1741844839626,0.063,123.84,123.83,40.337]
[1741844840014,8.1379,123.84,123.83,40.337]
[1741844840513,23.72332192,123.84,123.8,178.867]
[1741844840713,8.1379,123.84,123.8,194.45242192]
[1741844842617,8.1379,123.84,123.8,201.77242192]
[1741844842820,0.063,123.84,123.8,201.77242192]
[1741844842994,0.063,123.84,123.81,15.58542192]
[1741844843197,0.063,123.84,123.8,201.77242192]
[1741844844006,0.063,123.84,123.81,15.58542192]
[1741844844414,0.063,123.84,123.8,201.77242192]
[1741844844611,15.64842192,123.84,123.8,186.187]
[1741844845121,0.063,123.84,123.8,186.187]
[1741844845602,0.063,123.84,123.8,47.687]
[1741844846198,0.063,123.84,123.81,15.58542192]
[1741844846719,0.063,123.84,123.8,71.34992192]
[1741844847298,0.063,123.84,123.82,15.58542192]
[1741844848731,0.063,123.84,123.83,15.58542192]
[1741844849834,0.063,123.84,123.83,34.51939392]
[1741844850416,0.063,123.84,123.83,34.23507078]
[1741844850613,0.063,123.84,123.83,15.58542192]
[1741844850915,0.063,123.84,123.83,40.337]
[1741844854716,25.96843134,123.84,123.81,40.337]
[1741844854913,34.04353134,123.84,123.81,40.337]
[1741844855509,1.6338,123.84,123.81,40.337]
[1741844855723,1.6338,123.84,123.81,64.67163134]
[1741844856534,1.6338,123.84,123.81,40.337]
[1741844858132,1.6338,123.84,123.81,64.67163134]
[1741844858313,0.063,123.84,123.81,64.67163134]
[1741844859127,0.063,123.84,123.81,40.337]
[1741844859333,24.39763134,123.84,123.81,40.337]
[1741844859830,0.063,123.84,123.81,40.337]
[1741844861528,0.063,123.84,123.81,40.367]
[1741844861529,8.1379,123.84,123.81,40.367]
[1741844863827,32.47253134,123.84,123.81,40.367]
[1741844864147,24.33463134,123.82,123.81,40.367]
[1741844864932,24.33463134,123.82,123.81,0.03]
[1741844865924,32.41083134,123.82,123.81,0.03]
[1741844868344,33.92983134,123.83,123.81,0.03]
[1741844868843,9.5952,123.83,123.81,0.03]
[1741844870441,0.063,123.84,123.81,40.367]
[1741844870825,32.47263134,123.84,123.81,40.367]
[1741844871137,24.33463134,123.83,123.81,40.367]
[1741844871345,32.41083134,123.83,123.81,40.367]
[1741844871851,8.0762,123.83,123.81,40.367]
[1741844872340,8.1381,123.84,123.81,40.367]
[1741844873020,23.71563894,123.84,123.81,40.367]
[1741844873226,0.063,123.83,123.81,40.367]
[1741844877645,0.063,123.83,123.82,22.89753894]
[1741844877944,0.063,123.85,123.83,18.64964886]
[1741844878122,0.063,123.85,123.84,15.86186208]
[1741844878833,0.063,123.85,123.84,23.93676208]
[1741844879135,0.063,123.85,123.84,23.79460051]
[1741844879441,0.063,123.85,123.84,23.93676208]
[1741844879749,0.063,123.85,123.84,335.93676208]
[1741844880745,0.063,123.86,123.85,58.92364886]